bitfinex/quotes_SOLUSD_20240605
["timestamp","ask_amount","ask_price","bid_price","bid_amount"]
[1717626089561,13.3601,173.49,173.42,45.0]
[1717626089764,13.3601,173.49,173.43,7.18]
[1717626089933,6.1801,173.49,173.43,7.18]
[1717626090247,6.1801,173.49,173.44,7.18]
[1717626091757,6.1801,173.49,173.43,7.18]
[1717626097055,13.3601,173.49,173.42,45.0]
[1717626097365,13.3601,173.49,173.43,7.18]
[1717626098963,13.3601,173.49,173.41,20.0]
[1717626099155,7.35,173.48,173.42,7.18]
[1717626099466,7.35,173.48,173.35,1.0030416]
[1717626099467,7.18,173.44,173.35,1.0030416]
[1717626099647,7.18,173.44,173.37,7.18]
[1717626100667,7.18,173.44,173.34,120.0]
[1717626100668,0.17,173.43,173.34,120.0]
[1717626100969,7.52,173.43,173.37,7.18]
[1717626102489,34.89,173.43,173.36,0.10023836]
[1717626102664,8.59265926,173.42,173.36,0.10023836]
[1717626102976,1.75265926,173.41,173.36,0.10023836]
[1717626103177,1.41265926,173.4,173.36,0.10023836]
[1717626103347,0.17,173.39,173.36,0.10023836]
[1717626103743,0.34,173.39,173.36,0.10023836]
[1717626106246,1.41265926,173.4,173.36,0.10023836]
[1717626106449,7.18,173.45,173.39,7.18]
[1717626106748,1.65738176,173.44,173.39,7.18]
[1717626107751,0.17,173.43,173.39,7.18]
[1717626108560,0.17,173.43,173.36,0.10023836]
[1717626108764,0.17,173.43,173.39,7.18]
[1717626109565,0.17,173.43,173.36,0.10023836]
[1717626109757,0.34,173.43,173.36,0.10023836]
[1717626110083,6.8099,173.43,173.38,7.18]
[1717626110272,6.8099,173.43,173.36,0.10023836]
[1717626110573,13.9899,173.43,173.36,0.10023836]
[1717626110786,13.9899,173.43,173.37,7.18]
[1717626110953,16.1233,173.43,173.37,7.18]
[1717626111149,13.9899,173.43,173.37,7.18]
[1717626112486,13.9899,173.43,173.36,0.10023836]
[1717626112689,13.9899,173.43,173.37,7.18]
[1717626114852,0.34,173.43,173.38,7.18]
[1717626115052,0.17,173.43,173.39,7.18]
[1717626115373,0.17,173.43,173.4,7.18]
[1717626116076,0.17,173.43,173.35,65.0]
[1717626116286,0.34,173.43,173.38,7.18]
[1717626117984,0.34,173.43,173.35,65.0]
[1717626118151,0.34,173.43,173.39,7.18]
[1717626119562,0.34,173.43,173.35,65.0]
[1717626119777,0.34,173.43,173.39,7.18]
[1717626121078,0.17,173.43,173.35,65.0]
[1717626121266,0.17,173.43,173.4,7.18]
[1717626122889,0.17,173.43,173.35,65.0]
[1717626123265,0.17,173.43,173.39,7.18]
[1717626124582,0.17,173.43,173.35,65.0]
[1717626125457,0.17,173.43,173.38,7.18]
[1717626126190,0.17,173.43,173.39,7.18]
[1717626133099,0.17,173.43,173.41,7.18]
[1717626133314,0.17,173.43,173.4,7.18]
[1717626137207,0.17,173.43,173.36,0.10023836]
[1717626137403,0.17,173.43,173.4,7.18]
[1717626140720,0.17,173.43,173.36,0.10023836]
[1717626141094,0.17,173.43,173.39,7.18]
[1717626142426,0.17,173.43,173.36,0.10023836]
[1717626142801,0.17,173.43,173.39,7.18]
[1717626143217,0.17,173.43,173.4,7.18]
[1717626143724,1.65738176,173.44,173.4,7.18]
[1717626144218,1.65738176,173.44,173.36,0.10023836]
[1717626144521,1.65738176,173.44,173.4,7.18]
[1717626145932,3.79068176,173.44,173.4,7.18]
[1717626146428,1.65738176,173.44,173.4,7.18]
[1717626146794,1.65738176,173.44,173.36,120.10023836]
[1717626146995,1.65738176,173.44,173.37,45.0]
[1717626147211,1.65738176,173.44,173.4,7.18]
[1717626147936,3.79068176,173.44,173.4,7.18]
[1717626149324,1.65738176,173.44,173.37,45.0]
[1717626149518,1.65738176,173.44,173.41,7.18]
[1717626149956,1.65738176,173.44,173.37,45.0]
[1717626150126,1.65738176,173.44,173.41,7.18]
[1717626150438,3.79068176,173.44,173.4,7.18]
[1717626150742,1.65738176,173.44,173.4,7.18]
[1717626150924,1.65738176,173.44,173.41,7.18]
[1717626151938,1.65738176,173.44,173.37,45.0]
[1717626152123,1.65738176,173.44,173.41,7.18]
[1717626153034,1.65738176,173.44,173.37,45.0]
[1717626153239,3.79068176,173.44,173.41,7.18]
[1717626154149,3.79068176,173.44,173.37,45.0]
[1717626154440,3.79068176,173.44,173.41,7.18]
[1717626155144,1.65738176,173.44,173.41,7.18]
[1717626158943,1.65738176,173.44,173.43,7.18]
[1717626159329,2.1328,173.48,173.43,7.18]
[1717626159534,2.1328,173.48,173.45,7.18]
[1717626160533,6.5836,173.51,173.46,7.18]
[1717626160736,8.7161,173.51,173.47,7.18]
[1717626161048,2.1325,173.5,173.48,7.18]
[1717626163041,0.17,173.51,173.42,120.0]
[1717626163246,60.3212,173.55,173.49,7.18]
[1717626163469,2.1323,173.52,173.49,7.18]
[1717626163959,32.9077,173.57,173.44,120.0]
[1717626164251,2.1322,173.53,173.5,7.18]
[1717626164444,2.1321,173.54,173.5,7.18]
[1717626164850,2.1322,173.53,173.45,20.0]
[1717626165046,2.1322,173.53,173.46,45.0]
[1717626165341,2.1321,173.54,173.5,7.18]
[1717626176171,0.17,173.55,173.46,165.0]
[1717626176361,2.4719,173.55,173.52,7.18]
[1717626176557,3.78918176,173.56,173.52,7.18]
[1717626176871,1.65738176,173.56,173.52,7.18]
[1717626177060,1.65738176,173.56,173.53,7.18]
[1717626177872,1.65738176,173.56,173.48,126.5231]
[1717626178171,1.65738176,173.56,173.53,7.18]
[1717626181276,1.65738176,173.56,173.52,7.18]
[1717626185678,1.65738176,173.56,173.53,7.18]
[1717626185878,8.83738176,173.56,173.44,126.0761]
[1717626186055,34.57,173.58,173.49,7.18]
[1717626186056,2.1321,173.54,173.49,7.18]
[1717626186255,2.1322,173.53,173.44,6.0761]
[1717626186485,0.17,173.52,173.44,6.0761]
[1717626186779,2.3023,173.52,173.47,7.18]
[1717626186978,0.17,173.52,173.44,6.0761]
[1717626187174,0.17,173.52,173.47,7.18]
[1717626187479,0.17,173.52,173.44,6.0761]
[1717626187777,0.17,173.52,173.47,7.18]
[1717626188882,0.34,173.52,173.47,7.18]
[1717626199067,0.34,173.52,173.48,7.18]
[1717626199270,0.17,173.51,173.48,7.18]
[1717626199474,0.34,173.53,173.48,7.18]
[1717626199767,1.65738176,173.52,173.48,7.18]
[1717626200082,0.17,173.51,173.48,7.18]
[1717626204177,0.17,173.51,173.45,20.0]
[1717626204493,0.17,173.51,173.48,7.18]
[1717626211793,0.17,173.51,173.45,20.0]
[1717626212118,0.17,173.51,173.48,7.18]
[1717626215707,0.17,173.51,173.45,20.0]
[1717626215889,0.17,173.51,173.48,7.18]
[1717626216089,0.17,173.51,173.47,7.18]
[1717626216592,0.17,173.51,173.45,20.0]
[1717626216794,0.17,173.51,173.48,7.18]
[1717626218411,0.17,173.51,173.47,7.18]
[1717626222402,0.17,173.51,173.48,7.18]
[1717626224126,0.17,173.51,173.45,20.0]
[1717626224310,0.17,173.51,173.44,20.0]
[1717626224510,0.17,173.51,173.45,45.0]
[1717626224821,0.17,173.51,173.46,20.0]
[1717626233429,1.65738176,173.52,173.46,20.0]
[1717626233607,1.65738176,173.52,173.51,7.18]
[1717626234407,1.65738176,173.52,173.47,45.0]
[1717626234904,1.65738176,173.52,173.51,7.18]
[1717626236437,1.65738176,173.52,173.47,45.0]
[1717626236822,1.65738176,173.52,173.51,7.18]
[1717626238541,1.65738176,173.52,173.5,7.18]
[1717626240440,1.65738176,173.52,173.47,45.0]
[1717626240620,1.65738176,173.52,173.5,7.18]
[1717626245736,1.65738176,173.52,173.46,20.0]
[1717626245940,1.65738176,173.52,173.49,7.18]
[1717626246332,1.65738176,173.52,173.48,7.18]
[1717626246736,1.65738176,173.52,173.43,154.9725]
[1717626246737,1.65738176,173.52,173.43,6.2525]
[1717626246925,0.17,173.51,173.46,7.18]
[1717626247328,0.17,173.51,173.47,7.18]
[1717626248330,0.17,173.51,173.44,45.0]
[1717626248514,0.17,173.51,173.47,7.18]
[1717626248719,1.32738176,173.52,173.47,7.18]
[1717626249043,7.37908176,173.52,173.47,7.18]
[1717626251051,0.17,173.51,173.47,7.18]
[1717626257151,0.17,173.51,173.41,120.0]
[1717626257356,0.34,173.51,173.46,7.18]
[1717626257541,6.3917,173.51,173.46,7.18]
[1717626259049,1.32738176,173.52,173.47,52.18]
[1717626259253,8.1836,173.55,173.5,7.18]
[1717626260563,2.132,173.54,173.5,7.18]
[1717626261759,2.132,173.54,173.51,7.18]
[1717626262264,2.1322,173.53,173.5,7.18]
[1717626263261,2.1322,173.53,173.49,7.18]
[1717626263868,2.1322,173.53,173.47,45.0]
[1717626264061,2.1322,173.53,173.49,7.18]
[1717626264757,2.132,173.54,173.49,7.18]
[1717626265552,2.1322,173.53,173.49,7.18]
[1717626266462,2.1322,173.53,173.47,45.0]
[1717626266660,2.1322,173.53,173.49,7.18]
[1717626270975,2.132,173.54,173.47,45.0]
[1717626271153,2.132,173.54,173.49,7.18]
[1717626271670,2.1322,173.53,173.49,7.18]
[1717626273480,2.1322,173.53,173.46,45.0]
[1717626273782,0.17,173.52,173.49,7.18]
[1717626274377,0.34,173.52,173.49,7.18]
[1717626275474,2.4723,173.52,173.43,34.9674]
[1717626275654,2.4723,173.52,173.48,7.18]
[1717626276051,8.7816,173.52,173.48,7.18]
[1717626276355,6.6493,173.52,173.48,7.18]
[1717626277274,6.6493,173.52,173.44,65.0]
[1717626277473,6.6493,173.52,173.48,7.18]
[1717626277874,34.57,173.56,173.44,65.0]
[1717626278084,0.34,173.55,173.49,7.18]
[1717626278257,2.4719,173.55,173.5,7.18]
[1717626278592,8.853,173.55,173.5,7.18]
[1717626278772,8.853,173.55,173.49,7.18]
[1717626280583,8.853,173.55,173.5,7.18]
[1717626280876,2.132,173.54,173.5,7.18]
[1717626282987,2.132,173.54,173.44,65.0]
[1717626283172,2.132,173.54,173.5,7.18]
[1717626284082,2.132,173.54,173.44,65.0]
[1717626284265,2.132,173.54,173.5,7.18]
[1717626285002,2.1322,173.53,173.44,65.0]
[1717626285170,0.34,173.52,173.44,65.0]
[1717626285364,0.34,173.52,173.49,7.18]
[1717626285867,0.17,173.52,173.49,7.18]
[1717626286067,0.34,173.53,173.49,7.18]
[1717626289489,8.6092,173.54,173.49,7.18]
[1717626289989,2.1322,173.53,173.49,7.18]
[1717626292995,2.1322,173.53,173.44,65.0]
[1717626293173,2.1322,173.53,173.5,7.18]
[1717626297795,2.1322,173.53,173.44,65.0]
[1717626297998,2.1322,173.53,173.49,7.18]
[1717626300383,2.1322,173.53,173.44,65.0]
[1717626300591,8.7792,173.54,173.5,7.18]
[1717626300984,2.1322,173.53,173.5,7.18]
[1717626302497,6.6471,173.54,173.45,120.0]
[1717626302498,0.17,173.54,173.45,120.0]
[1717626302794,2.472,173.55,173.52,7.18]
[1717626303005,0.17,173.55,173.52,7.18]
[1717626303180,2.132,173.55,173.52,7.18]
[1717626303694,2.132,173.55,173.45,120.0]
[1717626303901,2.132,173.54,173.46,45.0]
[1717626304218,2.132,173.54,173.52,7.18]
[1717626307603,2.132,173.54,173.46,45.0]
[1717626307798,2.132,173.54,173.52,7.18]
[1717626309283,0.34,173.56,173.52,7.18]
[1717626309487,0.34,173.57,173.47,120.0]
[1717626309789,2.1318,173.56,173.53,7.18]
[1717626310808,2.1319,173.55,173.53,7.18]
[1717626311186,2.1319,173.56,173.53,7.18]
[1717626312503,2.1319,173.56,173.54,7.18]
[1717626315790,4.29866823,173.6,173.55,7.18]
[1717626316123,2.1316,173.58,173.55,7.18]
[1717626316478,2.1316,173.58,173.56,7.18]
[1717626319902,2.3015,173.59,173.56,7.18]
[1717626321514,2.1315,173.58,173.56,7.18]
[1717626322301,0.03596823,173.6,173.56,7.18]
[1717626322501,2.33726823,173.6,173.58,7.18]
[1717626322713,0.03596823,173.6,173.58,7.18]
[1717626323620,0.03596823,173.6,173.51,120.0]
[1717626323803,0.03596823,173.6,173.57,7.18]
[1717626327318,0.03596823,173.6,173.58,7.18]
[1717626334026,0.03596823,173.6,173.57,7.18]
[1717626338024,0.03596823,173.6,173.52,20.0]
[1717626338230,0.03596823,173.6,173.57,7.18]
[1717626343907,0.03596823,173.6,173.52,48.72]
[1717626344114,0.03596823,173.6,173.57,7.18]
[1717626347221,0.03596823,173.6,173.53,45.0]
[1717626347537,0.03596823,173.6,173.57,7.18]
[1717626348629,0.03596823,173.6,173.53,45.0]
[1717626348811,0.03596823,173.6,173.57,7.18]
[1717626351022,0.03596823,173.6,173.53,45.0]
[1717626351227,0.03596823,173.6,173.57,7.18]
[1717626353331,0.03596823,173.6,173.56,7.18]
[1717626362165,0.03596823,173.6,173.53,45.0]
[1717626362378,0.03596823,173.6,173.56,7.18]
[1717626367064,0.03596823,173.6,173.53,45.0]
[1717626367270,0.03596823,173.6,173.56,7.18]
[1717626370565,0.03596823,173.6,173.53,45.0]
[1717626370747,0.03596823,173.6,173.56,7.18]
[1717626372038,2.16736823,173.6,173.49,120.0]
[1717626372366,2.132,173.55,173.49,7.18]
[1717626372550,9.312,173.55,173.49,7.18]
[1717626373247,7.18,173.55,173.49,7.18]
[1717626374167,0.34,173.54,173.48,7.18]
[1717626383571,7.52,173.54,173.48,7.18]
[1717626386191,0.34,173.54,173.48,7.18]
[1717626387156,2.472,173.54,173.48,7.18]
[1717626387595,9.652,173.54,173.48,7.18]
[1717626388305,7.52,173.54,173.48,7.18]
[1717626389574,9.652,173.54,173.48,7.18]
[1717626389781,7.52,173.54,173.48,7.18]
[1717626390603,9.6521,173.54,173.48,7.18]
[1717626390796,2.4721,173.54,173.48,7.18]
[1717626392217,9.6521,173.54,173.48,7.18]
[1717626394301,9.6521,173.54,173.47,7.18]
[1717626398294,7.52,173.54,173.47,7.18]
[1717626402100,9.652,173.54,173.47,7.18]
[1717626402802,9.652,173.54,173.43,126.2475]
[1717626402803,2.1323,173.52,173.43,126.2475]
[1717626402981,9.3124,173.51,173.39,141.4625]
[1717626403188,9.3124,173.51,173.44,7.18]
[1717626403508,7.18,173.51,173.44,7.18]
[1717626403707,0.17,173.5,173.4,45.0]
[1717626404017,7.52,173.5,173.44,7.18]
[1717626409291,0.34,173.5,173.44,7.18]
[1717626409491,7.52,173.51,173.44,7.18]
[1717626412621,7.52,173.51,173.4,45.0]
[1717626412798,7.52,173.51,173.44,7.18]
[1717626415916,7.52,173.51,173.45,7.18]
[1717626420805,9.6524,173.51,173.45,7.18]
[1717626421005,7.52,173.51,173.45,7.18]
[1717626421713,9.6524,173.51,173.45,7.18]
[1717626429336,9.6524,173.51,173.4,45.0]
[1717626429635,9.6524,173.51,173.44,7.18]
[1717626429806,9.6524,173.51,173.4,45.0]
[1717626430007,9.6524,173.51,173.44,7.18]
[1717626431466,9.6524,173.51,173.4,45.0]
[1717626431622,9.6524,173.51,173.44,7.18]
[1717626432529,9.6524,173.51,173.4,45.0]
[1717626432733,9.6524,173.51,173.44,7.18]
[1717626433334,2.4724,173.51,173.44,7.18]
[1717626433535,9.6524,173.51,173.44,7.18]
[1717626433943,9.6524,173.51,173.41,20.0]
[1717626434112,9.6524,173.51,173.44,7.18]
[1717626434818,2.4724,173.51,173.44,7.18]
[1717626435122,9.6524,173.51,173.44,7.18]
[1717626435945,9.6524,173.51,173.42,45.0]
[1717626436125,9.6525,173.51,173.44,7.18]
[1717626438038,9.6525,173.51,173.42,45.0]
[1717626438335,9.6525,173.51,173.44,7.18]
[1717626439042,2.1325,173.5,173.44,7.18]
[1717626439423,7.52,173.51,173.44,7.18]
[1717626439424,9.6525,173.51,173.44,7.18]
[1717626442442,2.1325,173.5,173.42,45.0]
[1717626442635,2.1325,173.5,173.44,7.18]
[1717626444034,2.1325,173.5,173.43,7.18]
[1717626445241,2.1327,173.49,173.42,45.0]
[1717626445433,2.1326,173.5,173.43,7.18]
[1717626445635,2.1326,173.5,173.42,45.0]
[1717626445938,9.3126,173.5,173.42,45.0]
[1717626446139,9.3126,173.5,173.43,7.18]
[1717626448244,9.3126,173.5,173.42,45.0]
[1717626448245,9.6527,173.49,173.42,45.0]
[1717626448430,9.3127,173.49,173.42,52.18]
[1717626448815,7.18,173.48,173.42,52.18]
[1717626449431,7.18,173.48,173.42,45.0]
[1717626449633,7.18,173.48,173.42,7.18]
[1717626450243,7.18,173.48,173.41,20.0]
[1717626450453,7.18,173.48,173.41,7.18]
[1717626450631,2.3027,173.49,173.42,7.18]
[1717626450832,7.35,173.48,173.42,7.18]
[1717626451234,0.17,173.48,173.4,20.0]
[1717626451443,0.34,173.49,173.42,7.18]
[1717626451636,7.18,173.48,173.42,7.18]
[1717626452425,9.6527,173.49,173.42,7.18]
[1717626453152,9.6527,173.49,173.41,45.0]
[1717626453348,9.6527,173.49,173.42,7.18]
[1717626453732,9.6527,173.49,173.41,45.0]
[1717626453932,9.6527,173.49,173.42,7.18]
[1717626454230,2.4727,173.49,173.42,7.18]
[1717626454446,9.6527,173.49,173.42,7.18]
[1717626454963,2.4727,173.49,173.42,7.18]
[1717626455131,9.6527,173.49,173.42,7.18]
[1717626456244,2.4727,173.49,173.42,7.18]
[1717626456559,9.6527,173.49,173.42,7.18]
[1717626457062,9.6527,173.49,173.41,45.0]
[1717626457254,9.6527,173.49,173.42,7.18]
[1717626457967,2.4727,173.49,173.42,7.18]
[1717626458154,9.6527,173.49,173.42,7.18]
[1717626458460,0.17,173.49,173.44,7.18]
[1717626458659,2.1326,173.5,173.45,7.18]
[1717626458863,6.5769,173.5,173.45,7.18]
[1717626459167,8.7089,173.54,173.49,7.18]
[1717626459346,8.7089,173.54,173.5,7.18]
[1717626459546,2.1322,173.53,173.5,7.18]
[1717626460253,6.5769,173.54,173.5,7.18]
[1717626460753,6.5769,173.54,173.51,7.18]
[1717626462161,8.7089,173.54,173.45,120.0]
[1717626462360,8.7089,173.54,173.51,7.18]
[1717626463786,8.7089,173.54,173.5,7.18]
[1717626464648,2.1321,173.53,173.5,7.18]
[1717626465467,2.1321,173.53,173.49,7.18]
[1717626466259,2.1321,173.53,173.45,120.0]
[1717626466463,2.1321,173.53,173.49,7.18]
[1717626467547,2.1321,173.53,173.45,120.0]
[1717626467753,2.1321,173.53,173.49,7.18]
[1717626469679,8.709,173.54,173.49,7.18]
[1717626471286,8.709,173.54,173.45,120.0]
[1717626471464,8.709,173.54,173.49,7.18]
[1717626472181,6.8087,173.53,173.43,120.0]
[1717626472381,2.1323,173.52,173.46,7.18]
[1717626472573,16.1209,173.53,173.47,7.18]
[1717626473179,8.9409,173.53,173.47,7.18]
[1717626473363,8.9409,173.53,173.48,7.18]
[1717626473564,8.9409,173.53,173.43,127.18]
[1717626473770,8.9409,173.53,173.44,65.0]
[1717626476289,0.17,173.52,173.44,20.0]
[1717626476586,6.6387,173.51,173.47,7.18]
[1717626478969,6.6387,173.51,173.42,20.0]
[1717626479273,6.6387,173.51,173.43,45.0]
[1717626479474,2.3023,173.52,173.46,7.18]
[1717626480384,0.17,173.52,173.46,7.18]
[1717626481182,2.1326,173.5,173.4,6.5002]
[1717626481392,6.0233,173.48,173.43,7.18]
[1717626482080,6.0233,173.48,173.39,120.0]
[1717626482294,6.0233,173.48,173.43,7.18]
[1717626482493,6.0233,173.48,173.44,7.18]
[1717626482695,6.0233,173.48,173.39,120.0]
[1717626482995,0.34,173.49,173.44,7.18]
[1717626483898,0.34,173.5,173.44,7.18]
[1717626484082,2.1325,173.51,173.45,7.18]
[1717626484284,8.151,173.51,173.46,7.18]
[1717626487900,8.151,173.51,173.41,120.0]
[1717626488104,8.151,173.51,173.45,7.18]
[1717626493430,8.151,173.51,173.46,7.18]
[1717626494826,6.0185,173.51,173.46,7.18]
[1717626495126,2.1322,173.53,173.49,7.18]
[1717626495434,2.132,173.55,173.5,7.18]
[1717626495920,2.132,173.54,173.5,7.18]
[1717626496617,2.132,173.54,173.45,120.0]
[1717626496912,2.132,173.54,173.5,7.18]
[1717626501518,2.1321,173.53,173.5,7.18]
[1717626502525,2.1321,173.54,173.5,7.18]
[1717626505125,2.1322,173.53,173.5,7.18]
[1717626505335,7.18,173.54,173.48,7.18]
[1717626505631,7.18,173.54,173.47,7.18]
[1717626505830,2.1323,173.52,173.48,52.18]
[1717626506219,2.1322,173.53,173.48,52.18]
[1717626510322,2.1322,173.53,173.43,148.72]
[1717626510631,2.1322,173.53,173.48,7.18]
[1717626512441,9.3121,173.54,173.48,7.18]
[1717626512735,2.1321,173.54,173.48,7.18]
[1717626514435,2.1321,173.54,173.44,45.0]
[1717626514639,2.1321,173.54,173.48,7.18]
[1717626515346,2.1321,173.53,173.48,7.18]
[1717626518338,2.1321,173.54,173.48,7.18]
[1717626519239,2.1321,173.54,173.49,7.18]
[1717626519447,2.1321,173.54,173.45,20.0]
[1717626519743,8.2922,173.54,173.49,7.18]
[1717626520246,2.1321,173.53,173.49,7.18]
[1717626521024,8.2922,173.54,173.49,7.18]
[1717626521830,2.132,173.55,173.5,7.18]
[1717626522033,2.132,173.54,173.5,7.18]
[1717626522428,2.132,173.54,173.49,7.18]
[1717626523153,2.132,173.55,173.46,45.0]
[1717626523324,2.132,173.55,173.5,7.18]
[1717626525445,2.132,173.54,173.5,7.18]
[1717626526748,0.17,173.56,173.5,7.18]
[1717626526954,0.34,173.56,173.5,7.18]
[1717626527649,2.132,173.55,173.46,45.0]
[1717626527951,2.132,173.54,173.5,7.18]
[1717626528454,2.132,173.54,173.46,45.0]
[1717626528635,2.132,173.54,173.49,7.18]
[1717626532762,2.132,173.54,173.46,45.0]
[1717626532947,2.132,173.54,173.49,7.18]
[1717626540962,2.132,173.54,173.49,7.18]
[1717626548585,2.132,173.54,173.46,45.0]
[1717626548789,2.132,173.54,173.49,7.18]
[1717626556170,2.132,173.54,173.5,7.18]
[1717626557599,0.34,173.56,173.53,7.18]
[1717626557768,8.2918,173.57,173.53,7.18]
[1717626558274,6.1601,173.57,173.46,45.0]
[1717626558591,2.1319,173.55,173.51,7.18]
[1717626558778,2.1319,173.55,173.46,45.0]
[1717626559087,2.1318,173.56,173.5,7.18]
[1717626559288,2.1318,173.56,173.51,7.18]
[1717626559587,8.2376,173.56,173.51,7.18]
[1717626560382,6.1058,173.55,173.5,7.18]
[1717626566079,6.1058,173.55,173.47,120.0]
[1717626566080,6.1058,173.55,173.51,7.18]
[1717626566880,2.1317,173.57,173.51,7.18]
[1717626567083,9.3117,173.57,173.51,7.18]
[1717626567594,2.1317,173.57,173.51,7.18]
[1717626570907,2.1317,173.57,173.52,7.18]
[1717626571279,2.1318,173.56,173.52,7.18]
[1717626571599,2.1318,173.56,173.47,120.0]
[1717626571917,2.1317,173.57,173.53,7.18]
[1717626572515,2.1316,173.58,173.53,7.18]
[1717626572692,9.89468176,173.59,173.54,7.18]
[1717626574296,0.03596823,173.6,173.55,7.18]
[1717626574501,2.16736823,173.6,173.56,7.18]
[1717626576309,2.16736823,173.6,173.51,120.0]
[1717626576611,2.1314,173.59,173.52,45.0]
[1717626576794,2.1314,173.59,173.55,7.18]
[1717626576997,2.1314,173.59,173.54,7.18]
[1717626578205,2.1314,173.59,173.55,7.18]
[1717626579807,2.16736823,173.6,173.55,7.18]
[1717626580407,2.1314,173.59,173.52,45.0]
[1717626580607,2.1314,173.59,173.54,7.18]
[1717626581706,2.16736823,173.6,173.54,7.18]
[1717626581916,2.16736823,173.6,173.55,7.18]
[1717626590119,2.16736823,173.6,173.55,7.18]
[1717626590421,2.1314,173.59,173.55,7.18]
[1717626593728,2.16736823,173.6,173.56,7.18]
[1717626600228,2.16736823,173.6,173.52,45.0]
[1717626600437,2.1315,173.58,173.55,7.18]
[1717626600628,2.1315,173.58,173.52,45.0]
[1717626601329,2.1315,173.59,173.52,45.0]
[1717626601509,10.69256823,173.6,173.48,120.0]
[1717626601725,9.3116,173.58,173.49,20.0]
[1717626602034,2.1317,173.57,173.51,7.18]
[1717626602446,2.1317,173.57,173.49,20.0]
[1717626602617,2.1317,173.57,173.51,7.18]
[1717626602824,7.18,173.57,173.49,20.0]
[1717626603027,9.3116,173.58,173.51,7.18]
[1717626603624,9.3117,173.57,173.51,7.18]
[1717626603823,2.1316,173.58,173.51,7.18]
[1717626604031,9.3116,173.58,173.51,7.18]
[1717626604725,2.1315,173.59,173.52,7.18]
[1717626604925,9.3115,173.59,173.53,52.18]
[1717626605222,9.3115,173.59,173.5,165.0]
[1717626605426,9.3115,173.59,173.53,7.18]
[1717626605929,9.3115,173.59,173.52,7.18]
[1717626606129,9.3115,173.59,173.53,45.0]
[1717626610050,7.18,173.58,173.53,45.0]
[1717626615860,7.18,173.58,173.52,45.0]
[1717626617368,9.3115,173.58,173.51,52.18]
[1717626618956,7.18,173.58,173.51,45.0]
[1717626619141,7.18,173.58,173.51,52.18]
[1717626619768,7.18,173.58,173.51,45.0]
[1717626620064,7.18,173.58,173.51,52.18]